[Event "Czech Extraliga 2023-24"]
[Site "Czech Republic"]
[Date "2024.02.11"]
[Round "8.7"]
[White "Velicka, Petr"]
[Black "Slovak, Kilian"]
[Result "1-0"]
[ECO "B30"]
[WhiteElo "2369"]
[BlackElo "2296"]
[Annotator "TA"]
[PlyCount "133"]
[EventDate "2023.10.14"]
[EventCountry "CZE"]
[SourceTitle "playchess.com"]
[Source "ChessBase"]
[SourceQuality "1"]
[TimeControl "40/5400+30:1800+30"]

{[%evp 15,133,12,65,25,26,32,25,25,30,24,37,29,47,21,24,24,37,16,31,19,27,-3,7,5,8,4,12,0,13,3,4,7,13,0,0,0,14,6,22,6,6,6,10,14,15,15,15,14,17,18,18,20,31,30,175,157,191,183,157,164,159,160,272,248,313,311,316,277,292,312,310,295,248,288,383,371,279,179,180,181,493,447,779,728,1110,1098,1187,1188,1126,1095,2241,1859,1126,9036,12154,1073,29959,29958,12841,9469,29965,29966,29967,29968,29976,29977,29976,29978,29978,29977,29977,29978,29977,29978,29981,29981,29986,29987,29987,29988]} 1. e4 {[%emt 0:00:03]} c5 {[%emt 0:00:07]} 2. Nf3 {[%emt 0:00:04]} Nc6 {[%emt 0:00:10]} 3. Bb5 {[%emt 0:00:07]} e6 {[%emt 0:00:23]} 4. O-O {[%emt 0:00:09]} Nge7 {[%emt 0:00:22][%cal Bg8e7,Be7d5,Bd5f6,Bf6h5][%mdl 32]} 5. Re1 {[%emt 0:00:05]} a6 {[%emt 0:00:31]} 6. Bf1 {[%emt 0:00:24]} d5 {[%emt 0:10:25]} 7. exd5 {[%emt 0:00:26]} Nxd5 {[%emt 0:00:26]} 8. d4 {[%emt 0:00:12]} Be7 {[%emt 0:10:09]} ({Black should play} 8... Nf6 $11) 9. c4 {[%emt 0:04:50]} Nf6 {[%emt 0:01:56]} 10. dxc5 {[%emt 0:04:06]} Qxd1 {[%emt 0:03:03]} 11. Rxd1 {[%emt 0:00:33] White has an edge.} Bxc5 {[%emt 0:04:45]} 12. Nc3 {[%emt 0:00:31]} Bd7 {[%emt 0:03:00]} 13. Bf4 {[%emt 0:11:28]} Nh5 {[%emt 0:09:12]} 14. Bd6 {[%emt 0:07:16]} Bxd6 {[%emt 0:00:16]} 15. Rxd6 {[%emt 0:00:10]} Ke7 {[%emt 0:08:42]} 16. Rad1 {[%emt 0:00:24]} Rhd8 {[%emt 0:02:19]} 17. g3 {[%emt 0:26:11]} Nf6 {[%emt 0:02:22]} 18. Be2 {[%emt 0:06:41]} Be8 {[%emt 0:03:31]} 19. Rxd8 {[%emt 0:01:24]} Rxd8 {[%emt 0:00:10]} 20. Rxd8 {[%emt 0:00:09]} Kxd8 {[%emt 0:00:13]} 21. Kf1 {[%emt 0:04:39]} Nd7 {[%emt 0:04:00]} 22. Ke1 {[%emt 0:00:28]} f6 {[%emt 0:00:45]} 23. Kd2 {[%emt 0:01:42]} Nc5 {[%emt 0:04:33]} 24. Bd1 {[%emt 0:04:18]} Bh5 {[%emt 0:05:33]} 25. Nd4 {[%emt 0:02:01] [#] Strongly threatening Nxc6+.} Bxd1 {[%emt 0:00:35]} 26. Nxc6+ {[%emt 0:00:05]} Kc7 {[%emt 0:08:28]} 27. Nxd1 {[%emt 0:01:54]} Kxc6 $11 {[%emt 0:00:07][%mdl 4096] Endgame. KN-KN} 28. b4 {[%emt 0:00:11]} Ne4+ {[%emt 0:02:03]} 29. Kd3 {[%emt 0:01:18]} Nd6 {[%emt 0:00:10]} 30. f4 {[%emt 0:02:57]} b6 {[%emt 0:01:38]} 31. Ne3 {[%emt 0:01:12]} Kc7 {[%emt 0:04:39]} 32. Nc2 {[%emt 0:02:14]} Nb7 {[%emt 0:01:43]} 33. Nd4 {[%emt 0:01:36]} Kd7 {[%emt 0:00:07]} 34. f5 {[%emt 0:02:51]} exf5 {[%emt 0:00:08] Black cannot hold the game after this.} (34... Nd8 $1 $11 {and Black has nothing to worry.}) 35. Nxf5 $18 {[%emt 0:00:07]} g6 {[%emt 0:00:21][%cal Bg7g6,Bg6g5][%mdl 32]} 36. Ne3 {[%emt 0:00:06]} f5 {[%emt 0:04:12]} 37. Nd5 {[%emt 0:00:48]} Kc6 {[%emt 0:00:08]} 38. Nf6 {[%emt 0:00:37]} h5 {[%emt 0:01:46]} (38... Nd8 $16 39. Nxh7 Ne6) 39. Nd5 {[%emt 0:00:22]} g5 {[%emt 0:02:20]} 40. Ne7+ {[%emt 0:00:27]} Kd6 {[%emt 0:01:33]} 41. Nxf5+ {[%emt 0:30:10]} Ke5 {[%emt 0:30:05]} 42. Nd4 {[%emt 0:07:14]} a5 {[%emt 0:00:00]} 43. a3 {[%emt 0:00:00][%cal Ba2a3,Ba3b4,Bb4c5,Bc5c6][%mdl 32]} axb4 {[%emt 0:00:00]} 44. axb4 {[%emt 0:00:00]} Nd6 {[%emt 0:00:00]} 45. Nf3+ {[%emt 0:00:00]} Kf5 {[%emt 0:00:00]} 46. c5 {[%emt 0:00:00]} bxc5 {[%emt 0:00:00]} 47. bxc5 {[%emt 0:00:00]} Ne8 {[%emt 0:00:00]} (47... Nc8 48. c6 Kg4) 48. h3 {[%emt 0:00:00] Threatens to win with Kc4.} Nc7 {[%emt 0:00:00]} 49. c6 {[%emt 0:00:00]} g4 {[%emt 0:01:44]} 50. Nd4+ {[%emt 0:00:00]} Ke5 {[%emt 0:00:03]} 51. h4 {[%emt 0:00:00]} Kd5 {[%emt 0:00:05]} 52. Nf5 {[%emt 0:00:00]} Ne6 {[%emt 0:04:24] [#]} 53. Ng7 $1 {[%emt 0:00:23][%mdl 512]} Nc5+ {[%emt 0:01:03]} (53... Nc7 54. Nxh5) 54. Ke3 {[%emt 0:00:10]} Kxc6 {[%emt 0:00:05]} 55. Nxh5 {[%emt 0:00:05] White threatens Nf6 and mate.} Kd5 {[%emt 0:00:35]} 56. Nf6+ {[%emt 0:00:27]} (56. Kf4 Ke6 57. Kxg4 Ne4 $18) 56... Ke6 {[%emt 0:00:05]} 57. Nxg4 {[%emt 0:00:07] White wants to mate with Nf2.} Kf5 {[%emt 0:00:11]} 58. Nf2 {[%emt 0:00:12] White mates.} Ne6 {[%emt 0:00:15]} 59. g4+ {[%emt 0:00:07]} Ke5 {[%emt 0:04:34]} 60. Nd3+ {[%emt 0:00:14]} Kf6 {[%emt 0:00:00]} 61. Ke4 {[%emt 0:00:32]} Kg7 {[%emt 0:00:00]} 62. Ke5 {[%emt 0:00:30]} Nf8 {[%emt 0:00:00]} 63. Nf4 {[%emt 0:01:39]} Nd7+ {[%emt 0:00:00]} 64. Kf5 {[%emt 0:00:08]} Kf7 {[%emt 0:00:00]} 65. g5 {[%emt 0:00:33]} Nf8 {[%emt 0:00:00]} 66. h5 {[%emt 0:00:16][%cal Bh4h5,Bh5h6][%mdl 32]} Nd7 {[%emt 0:00:00]} 67. h6 {[%emt 0:00:25] Weighted Error Value: White=0.08 (flawless) /Black=0.49.  Mistake:       	---       	Black=3      Inaccurate:     	White=3     	Black=2      OK:         	White=19    	Black=17     Best:        	White=3     	Black=1} 1-0

[Event "Czech Extraliga 2023-24"]
[Site "Czech Republic"]
[Date "2024.02.11"]
[Round "8.7"]
[White "Kusa, Jakub"]
[Black "Studnicka, Tomas"]
[Result "1-0"]
[ECO "D85"]
[WhiteElo "2350"]
[BlackElo "2276"]
[Annotator "TA"]
[PlyCount "35"]
[EventDate "2023.10.14"]
[EventCountry "CZE"]
[SourceTitle "playchess.com"]
[Source "ChessBase"]
[SourceQuality "1"]
[TimeControl "40/5400+30:1800+30"]

{[%evp 23,35,23,25,12,64,38,508,508,639,641,637,610,29993,29994]} 1. d4 Nf6 2. Nf3 g6 3. c4 Bg7 4. Nc3 d5 5. cxd5 Nxd5 6. e4 Nxc3 7. bxc3 c5 8. Rb1 O-O 9. Be2 cxd4 10. cxd4 Qa5+ 11. Bd2 Qxa2 12. O-O Bg4 13. Rxb7 Rd8 ({Better is} 13... Bxf3 $11 14. Bxf3 Bxd4) 14. d5 ({Weaker is} 14. Rxe7 Nc6 15. Rc7 Bxf3 16. Bxf3 Rxd4 $17 (16... Nxd4 17. Bg5 $11)) 14... e6 $2 {[%mdl 8192] [#]} (14... Nd7 $14) 15. Rxf7 $3 $18 {[%mdl 512]} exd5 {[#]} (15... Bxf3 16. Rxg7+) 16. Rxg7+ $1 {[%mdl 512]} Kxg7 17. Bc3+ {A strong pair of Bishops.} Kg8 {[%cal Od5d4] [#]} 18. Qd4 $1 {Black got outplayed after the opening.   Weighted Error Value: White=0.06 (flawless) /Black=2.02.  Loses game:     	---       	Black=1      Mistake:       	---       	Black=1      Inaccurate:     	White=1     	---        OK:         	White=1     	---        Brilliant:      	White=1     	---} 1-0

[Event "Czech Extraliga 2023-24"]
[Site "Czech Republic"]
[Date "2024.02.11"]
[Round "8.7"]
[White "UNI9 Simek Petr FM"]
[Black "NOV14 Havelka Josef FM"]
[Result "0-1"]
[ECO "E04"]
[WhiteElo "2322"]
[BlackElo "2352"]
[Annotator "NA"]
[PlyCount "54"]
[EventDate "2023.10.14"]
[EventCountry "CZE"]
[SourceTitle "playchess.com"]
[Source "ChessBase"]
[SourceQuality "1"]
[TimeControl "40/5400+30:1800+30"]

1. d4 {[%emt 0:00:02]} Nf6 {[%emt 0:00:07]} 2. c4 {[%emt 0:00:06]} e6 {[%emt 0:00:18]} 3. Nf3 {[%emt 0:00:05]} d5 {[%emt 0:00:10]} 4. g3 {[%emt 0:00:06]} dxc4 {[%emt 0:00:57]} 5. Bg2 {[%emt 0:00:06]} a6 {[%emt 0:00:13]} 6. O-O {[%emt 0:00:06]} Nc6 {[%emt 0:00:22]} 7. a4 {[%emt 0:00:10]} Rb8 {[%emt 0:06:04]} 8. a5 {[%emt 0:00:20]} b5 {[%emt 0:17:04]} 9. axb6 {[%emt 0:00:07]} cxb6 {[%emt 0:00:34]} 10. Nc3 {[%emt 0:00:13]} Bb7 {[%emt 0:07:16]} 11. e4 {[%emt 0:05:23]} Nb4 {[%emt 0:09:24]} 12. Ne5 {[%emt 0:40:02]} b5 {[%emt 0:11:14]} 13. b3 {[%emt 0:06:31]} Nd7 {[%emt 0:09:40]} 14. Nxd7 {[%emt 0:11:46]} Qxd7 {[%emt 0:00:07]} 15. bxc4 {[%emt 0:32:57]} bxc4 {[%emt 0:00:53]} 16. d5 {[%emt 0:00:00]} e5 {[%emt 0:05:56]} 17. Be3 {[%emt 0:00:00]} Bd6 {[%emt 0:06:03]} 18. f4 {[%emt 0:00:00]} O-O {[%emt 0:03:07]} 19. Kh1 {[%emt 0:00:00]} Qc7 {[%emt 0:04:35]} 20. Qd2 {[%emt 0:00:00]} Bc8 {[%emt 0:03:37]} 21. f5 {[%emt 0:01:11]} f6 {[%emt 0:01:03]} 22. Na4 {[%emt 0:00:52]} Bd7 {[%emt 0:01:50]} 23. Rfc1 {[%emt 0:00:10]} Nd3 {[%emt 0:04:46]} 24. Rc2 {[%emt 0:00:09]} Bxa4 {[%emt 0:01:13]} 25. Rxa4 {[%emt 0:01:38]} Rb1+ {[%emt 0:00:06]} 26. Bf1 {[%emt 0:00:11]} Nb4 {[%emt 0:03:55]} 27. Rc1 {[%emt 0:01:16]} c3 {[%emt 0:00:52]} 0-1

[Event "Czech Extraliga 2023-24"]
[Site "Czech Republic"]
[Date "2024.02.11"]
[Round "8.7"]
[White "Sharashenidze, Akaki"]
[Black "Burdalev, Kirill"]
[Result "1/2-1/2"]
[ECO "C47"]
[WhiteElo "2314"]
[BlackElo "2338"]
[Annotator "TA"]
[PlyCount "47"]
[EventDate "2023.10.14"]
[EventCountry "CZE"]
[SourceTitle "playchess.com"]
[Source "ChessBase"]
[SourceQuality "1"]
[TimeControl "40/5400+30:1800+30"]

{[%evp 17,47,7,7,6,-2,0,0,0,0,0,24,14,8,0,0,-2,0,-10,-7,-13,0,0,0,0,0,0,0,0,0,0,0,-4]} 1. e4 {[%emt 0:00:04]} e5 {[%emt 0:00:12]} 2. Nf3 {[%emt 0:00:05]} Nc6 {[%emt 0:00:05]} 3. Nc3 {[%emt 0:00:22]} Nf6 {[%emt 0:01:04]} 4. d4 {[%emt 0:00:09]} exd4 {[%emt 0:01:00]} 5. Nxd4 {[%emt 0:00:06]} Bb4 {[%emt 0:00:07]} 6. Nxc6 {[%emt 0:00:12]} bxc6 {[%emt 0:00:05]} 7. Bd3 {[%emt 0:00:07]} O-O {[%emt 0:00:30]} 8. O-O {[%emt 0:01:00]} d5 {[%emt 0:00:24]} 9. exd5 {[%emt 0:01:05]} cxd5 {[%emt 0:02:55]} 10. h3 {[%emt 0:01:00]} c6 {[%emt 0:04:33]} 11. Qf3 {[%emt 0:00:37]} Bd6 {[%emt 0:01:21]} 12. Bf4 {[%emt 0:03:03]} Be6 {[%emt 0:02:37]} 13. Ne2 {[%emt 0:04:16]} c5 {[%emt 0:03:20]} 14. c3 {[%emt 0:06:19]} Rb8 {[%emt 0:07:42] The position is equal.} 15. Bxd6 {[%emt 0:04:18]} Qxd6 {[%emt 0:00:08]} 16. b3 {[%emt 0:00:12]} Rfe8 {[%emt 0:02:16]} 17. Rad1 {[%emt 0:11:27]} Bd7 {[%emt 0:01:42]} 18. Rfe1 {[%emt 0:04:53]} Bc6 {[%emt 0:11:13]} 19. Qf4 {[%emt 0:01:58]} Re5 {[%emt 0:06:36]} 20. Qd2 {[%emt 0:02:41]} Rbe8 {[%emt 0:03:47]} 21. Ng3 {[%emt 0:01:19]} Rxe1+ {[%emt 0:15:12]} 22. Rxe1 {[%emt 0:00:08]} Rxe1+ {[%emt 0:00:12]} 23. Qxe1 {[%emt 0:00:08]} g6 {[%emt 0:00:01] Wards off Nf5} 24. Bf1 {[%emt 0:19:54] A rather calm draw.   Weighted Error Value: White=0.03 (flawless) /Black=0.03 (flawless) .  OK:         	White=5     	Black=5} 1/2-1/2

[Event "Czech Extraliga 2023-24"]
[Site "Czech Republic"]
[Date "2024.02.11"]
[Round "8.7"]
[White "Movsesian, Julia"]
[Black "Pulpan, Jakub"]
[Result "1/2-1/2"]
[ECO "C77"]
[WhiteElo "2257"]
[BlackElo "2393"]
[Annotator "TA"]
[PlyCount "51"]
[EventDate "2023.10.14"]
[EventCountry "CZE"]
[SourceTitle "playchess.com"]
[Source "ChessBase"]
[SourceQuality "1"]
[TimeControl "40/5400+30:1800+30"]

{[%evp 13,51,25,34,-7,6,-18,-15,-25,-14,-5,-15,-4,-2,-15,0,0,0,-22,-35,-42,-35,-48,-36,-46,-44,-39,-46,-37,-24,-37,-45,-46,-55,-63,-50,-45,-58,-43,-17,-56]} 1. e4 {[%emt 0:00:06]} e5 {[%emt 0:00:23]} 2. Nf3 {[%emt 0:00:17]} Nc6 {[%emt 0:00:20]} 3. Bb5 {[%emt 0:00:32][%cal Bf1b5,Bb5a4,Ba4b3,Bb3d5][%mdl 32]} a6 {[%emt 0:02:20]} 4. Ba4 {[%emt 0:00:15]} Nf6 {[%emt 0:01:50]} 5. d3 {[%emt 0:01:51]} d6 {[%emt 0:03:06]} 6. c3 {[%emt 0:01:29]} g6 {[%emt 0:04:52]} 7. O-O {[%emt 0:05:17]} Bg7 {[%emt 0:00:38]} 8. b4 {[%emt 0:08:45]} b5 {[%emt 0:15:56]} 9. Bb3 {[%emt 0:00:24]} a5 {[%emt 0:01:51]} 10. Bg5 {[%emt 0:17:34]} (10. bxa5 {simplifies} Nxa5 11. Bc2 O-O 12. a4) 10... h6 {[%emt 0:17:09]} 11. Bd5 {[%emt 0:04:13]} Bd7 {[%emt 0:02:07]} 12. Bxf6 {[%emt 0:04:22]} Bxf6 {[%emt 0:01:10]} 13. c4 {[%emt 0:03:02]} Rb8 {[%emt 0:03:25]} 14. cxb5 {[%emt 0:02:26]} Rxb5 {[%emt 0:06:11]} 15. bxa5 {[%emt 0:47:27]} Nxa5 {[%emt 0:02:18][%cal Ob5d5] White must now prevent ...Rxd5!} 16. Nc3 {[%emt 0:00:00]} Rb8 {[%emt 0:02:31]} 17. a4 {[%emt 0:00:00]} O-O {[%emt 0:01:33]} 18. Qc2 {[%emt 0:00:00]} c6 {[%emt 0:04:31]} 19. Ba2 {[%emt 0:00:00]} Qb6 {[%emt 0:01:05]} 20. Nd1 {[%emt 0:00:00]} Bg4 {[%emt 0:09:21]} 21. Nd2 {[%emt 0:00:00]} Qd4 {[%emt 0:05:17] White is weak on the dark squares} 22. Nc3 $1 {[%emt 0:00:00]} Kg7 {[%emt 0:02:09]} 23. Nc4 {[%emt 0:00:00]} Qc5 {[%emt 0:03:36]} 24. Nxa5 {[%emt 0:00:00]} Qxa5 {[%emt 0:00:04]} 25. Nd1 {[%emt 0:00:00]} d5 {[%emt 0:04:35]} 26. Ne3 {[%emt 0:00:00] Weighted Error Value: White=0.06 (flawless) /Black=0.05 (flawless) .  Inaccurate:     	White=1     	Black=1      OK:         	White=8     	Black=6      Best:        	---       	Black=1      Strong:       	White=1     	---} 1/2-1/2

[Event "Czech Extraliga 2023-24"]
[Site "Czech Republic"]
[Date "2024.02.11"]
[Round "8.8"]
[White "Cerveny, Martin"]
[Black "Mojzis, Jaroslav"]
[Result "1-0"]
[ECO "E17"]
[WhiteElo "2382"]
[BlackElo "2068"]
[Annotator "TA"]
[PlyCount "47"]
[EventDate "2023.10.14"]
[EventCountry "CZE"]
[SourceTitle "playchess.com"]
[Source "ChessBase"]
[SourceQuality "1"]
[TimeControl "40/5400+30:1800+30"]

{[%evp 23,47,-6,0,0,0,-27,-41,-63,0,-12,-13,-3,-3,-8,-7,0,11,7,18,-3,52,-15,-12,-12,406,397]} 1. d4 {[%emt 0:00:04]} Nf6 {[%emt 0:00:11]} 2. Nf3 {[%emt 0:00:05]} e6 {[%emt 0:00:10]} 3. g3 {[%emt 0:00:14]} b6 {[%emt 0:01:11]} 4. Bg2 {[%emt 0:00:07]} Bb7 {[%emt 0:00:07]} 5. O-O {[%emt 0:00:07]} Be7 {[%emt 0:00:18]} 6. c4 {[%emt 0:00:06]} O-O {[%emt 0:00:09]} 7. d5 {[%emt 0:00:06]} exd5 {[%emt 0:00:09]} 8. Nh4 {[%emt 0:00:05]} c6 {[%emt 0:00:19]} 9. cxd5 {[%emt 0:00:06]} Nxd5 {[%emt 0:00:05]} 10. Nf5 {[%emt 0:00:04]} Nc7 {[%emt 0:00:08]} 11. e4 {[%emt 0:00:11]} d5 {[%emt 0:00:33]} 12. Nc3 {[%emt 0:01:32]} Nba6 {[%emt 0:01:24]} 13. Re1 {[%emt 0:04:32] And now exd5 would win.} Bf6 {[%emt 0:07:11]} 14. Bf4 {[%emt 0:02:37]} Bc8 $1 {[%emt 0:03:11]} 15. g4 $1 {[%emt 0:06:31] Black is slightly better.} Be6 {[%emt 0:11:40]} ({Black should try} 15... d4 $15 16. Ne2 d3) 16. Qf3 {[%emt 0:15:02]} dxe4 {[%emt 0:29:40]} 17. Nxe4 {[%emt 0:02:55]} Bxf5 {[%emt 0:02:59]} 18. gxf5 {[%emt 0:00:20] Nxf6+ is the strong threat.} Nd5 {[%emt 0:00:43]} 19. Rad1 {[%emt 0:00:21]} Nc5 {[%emt 0:03:35]} 20. Nxf6+ {[%emt 0:13:20]} Qxf6 {[%emt 0:00:11]} 21. Be5 {[%emt 0:00:06] This pair of bishops is nice.} (21. b4 $5 Nxf4 (21... Nxb4 22. Be5 $16) 22. Qxf4 $18) 21... Qh6 {[%emt 0:02:12]} (21... Qh4 $11) 22. Qg3 {[%emt 0:14:35]} (22. b4 $1 $14 Nd7 23. b5 Nxe5 24. Rxe5) 22... Nd7 {[%emt 0:02:32]} 23. Bxd5 {[%emt 0:01:47]} Nxe5 {[%emt 0:00:33][%mdl 8192] [#]} (23... cxd5 $11 {and Black has nothing to worry.} 24. Rxd5 Nxe5 25. Qxe5 Rad8) 24. Bb3 $1 {[%emt 0:00:53] Weighted Error Value: White=0.14 (very precise) /Black=0.57.  Loses game:     	---       	Black=1      Mistake:       	White=1     	Black=2      Inaccurate:     	White=1     	---        OK:         	White=3     	Black=4      Strong:       	White=2     	Black=1} ({Worse is} 24. Rxe5 cxd5 25. Rexd5 Kh8 $11) 1-0

[Event "Czech Extraliga 2023-24"]
[Site "Czech Republic"]
[Date "2024.02.11"]
[Round "8.8"]
[White "Konopka, Michal"]
[Black "Michalek, Jan"]
[Result "1/2-1/2"]
[ECO "E62"]
[WhiteElo "2346"]
[BlackElo "2242"]
[Annotator "RC"]
[PlyCount "56"]
[EventDate "2023.10.14"]
[EventCountry "CZE"]
[SourceTitle "playchess.com"]
[Source "ChessBase"]
[SourceQuality "1"]
[TimeControl "40/5400+30:1800+30"]

1. Nf3 {[%emt 0:00:05]} Nf6 {[%emt 0:00:15]} 2. c4 {[%emt 0:00:13]} g6 {[%emt 0:00:09]} 3. g3 {[%emt 0:00:22]} Bg7 {[%emt 0:00:11]} 4. Bg2 {[%emt 0:00:11]} O-O {[%emt 0:00:21]} 5. d4 {[%emt 0:00:46]} d6 {[%emt 0:00:17]} 6. O-O {[%emt 0:00:16]} Nc6 {[%emt 0:00:14]} 7. Nc3 {[%emt 0:00:28]} e5 {[%emt 0:01:18]} 8. d5 {[%emt 0:06:04]} Nb8 {[%emt 0:00:20]} 9. c5 {[%emt 0:00:31]} Na6 {[%emt 0:00:07]} 10. cxd6 {[%emt 0:00:36]} cxd6 {[%emt 0:00:09]} 11. Nd2 {[%emt 0:00:49]} Bd7 {[%emt 0:00:52]} 12. a4 {[%emt 0:00:57]} Ne8 {[%emt 0:12:29]} 13. Qb3 {[%emt 0:09:52]} Qc8 {[%emt 0:17:53]} 14. Qa3 {[%emt 0:06:45]} Qc5 {[%emt 0:07:57]} 15. Qxc5 {[%emt 0:35:10]} Nxc5 {[%emt 0:00:16]} 16. e4 {[%emt 0:08:24]} Rc8 {[%emt 0:05:05]} 17. Ra3 {[%emt 0:02:04]} Nd3 {[%emt 0:01:41]} 18. Ne2 {[%emt 0:05:02]} Nxc1 {[%emt 0:01:57]} 19. Rxc1 {[%emt 0:00:09]} Rxc1+ {[%emt 0:03:07]} 20. Nxc1 {[%emt 0:00:30]} Bh6 {[%emt 0:00:10]} 21. Ncb3 {[%emt 0:00:40]} f5 {[%emt 0:06:16]} 22. Nc4 {[%emt 0:00:49]} Rf7 {[%emt 0:01:37]} 23. Nba5 {[%emt 0:03:33]} Bc8 {[%emt 0:04:25]} 24. f3 {[%emt 0:01:28]} Rc7 {[%emt 0:03:17]} 25. b4 {[%emt 0:00:27]} Kf8 {[%emt 0:09:49]} 26. Bf1 {[%emt 0:01:22]} Ke7 {[%emt 0:01:33]} 27. Bd3 {[%emt 0:00:25]} Nf6 {[%emt 0:01:36]} 28. Kg2 {[%emt 0:05:06]} fxe4 {[%emt 0:02:34]} 1/2-1/2

[Event "Czech Extraliga 2023-24"]
[Site "Czech Republic"]
[Date "2024.02.11"]
[Round "8.8"]
[White "Liska, Jiri"]
[Black "Pisk, Petr"]
[Result "1/2-1/2"]
[ECO "A13"]
[WhiteElo "2285"]
[BlackElo "2295"]
[Annotator "NA COMBH"]
[PlyCount "42"]
[EventDate "2023.10.14"]
[EventCountry "CZE"]
[SourceTitle "playchess.com"]
[Source "ChessBase"]
[SourceQuality "1"]
[TimeControl "40/5400+30:1800+30"]

1. Nf3 Nf6 2. c4 e6 3. g3 a6 4. Bg2 b5 5. b3 Bb7 6. O-O c5 7. Bb2 d6 8. e3 Nbd7 9. d4 Be7 10. Qe2 O-O 11. Nbd2 Rb8 12. Rfd1 Re8 13. Rac1 Bf8 14. dxc5 Nxc5 15. b4 Na4 16. Ba1 bxc4 17. Nxc4 d5 18. Na5 Bxb4 19. Nxb7 Rxb7 20. Qxa6 Qa8 21. Qe2 Ne4 1/2-1/2

[Event "Czech Extraliga 2023-24"]
[Site "Czech Republic"]
[Date "2024.02.11"]
[Round "8.8"]
[White "NOV16 Vojta Jakub FM"]
[Black "UNI12 Kovar Vojtech"]
[Result "1/2-1/2"]
[ECO "E01"]
[WhiteElo "2277"]
[BlackElo "2200"]
[Annotator "NA"]
[PlyCount "55"]
[EventDate "2023.10.14"]
[EventCountry "CZE"]
[SourceTitle "playchess.com"]
[Source "ChessBase"]
[SourceQuality "1"]
[TimeControl "40/5400+30:1800+30"]

1. c4 {[%emt 0:00:06]} e6 {[%emt 0:00:06]} 2. g3 {[%emt 0:00:13]} d5 {[%emt 0:00:06]} 3. Bg2 {[%emt 0:00:04]} c6 {[%emt 0:00:07]} 4. Nf3 {[%emt 0:00:37]} Nf6 {[%emt 0:01:20]} 5. O-O {[%emt 0:01:40]} Nbd7 {[%emt 0:01:03]} 6. b3 {[%emt 0:01:32]} Bd6 {[%emt 0:01:34]} 7. Bb2 {[%emt 0:03:47]} O-O {[%emt 0:11:34]} 8. Nc3 {[%emt 0:00:33]} Re8 {[%emt 0:03:53]} 9. d4 {[%emt 0:10:05]} dxc4 {[%emt 0:15:27]} 10. bxc4 {[%emt 0:00:33]} e5 {[%emt 0:00:04]} 11. d5 {[%emt 0:19:12]} Nb6 {[%emt 0:03:54]} 12. Qb3 {[%emt 0:04:48]} e4 {[%emt 0:09:59]} 13. Nd4 {[%emt 0:21:02]} Bd7 {[%emt 0:33:55]} 14. a4 {[%emt 0:03:13]} cxd5 {[%emt 0:09:43]} 15. cxd5 {[%emt 0:00:06]} Rc8 {[%emt 0:00:03]} 16. Ndb5 {[%emt 0:05:17]} Be5 {[%emt 0:02:41]} 17. Nxa7 {[%emt 0:01:29]} Rc5 {[%emt 0:00:05]} 18. Nab5 {[%emt 0:04:26]} Nc4 {[%emt 0:00:18]} 19. Ba3 {[%emt 0:00:37]} Na5 {[%emt 0:02:12]} 20. Qa2 {[%emt 0:03:22]} Rxc3 {[%emt 0:01:19]} 21. Nxc3 {[%emt 0:00:01]} Bxc3 {[%emt 0:00:06]} 22. Rac1 {[%emt 0:00:25]} Be5 {[%emt 0:00:31]} 23. Bb4 {[%emt 0:03:14]} Qb6 {[%emt 0:00:30]} 24. Rb1 {[%emt 0:00:27]} Qa6 {[%emt 0:00:18]} 25. Bxa5 {[%emt 0:01:10]} Qxa5 {[%emt 0:00:01]} 26. Rxb7 {[%emt 0:00:12]} Qxa4 {[%emt 0:01:58]} 27. Qxa4 {[%emt 0:04:53]} Bxa4 {[%emt 0:00:01]} 28. Rc1 {[%emt 0:00:02]} 1/2-1/2

[Event "Czech Extraliga 2023-24"]
[Site "Czech Republic"]
[Date "2024.02.11"]
[Round "8.8"]
[White "Danada, Tomas"]
[Black "Klima, Lukas"]
[Result "1/2-1/2"]
[ECO "A34"]
[WhiteElo "2219"]
[BlackElo "2312"]
[Annotator "TA"]
[PlyCount "41"]
[EventDate "2023.10.14"]
[EventCountry "CZE"]
[SourceTitle "playchess.com"]
[Source "ChessBase"]
[SourceQuality "1"]
[TimeControl "40/5400+30:1800+30"]

{[%evp 17,41,12,30,14,27,19,37,31,66,24,52,0,0,0,0,0,0,0,0,0,0,0,0,0,0,0]} 1. c4 {[%emt 1:31:00]} c5 {[%emt 1:31:00]} 2. Nf3 {[%emt 0:00:30]} Nc6 {[%emt 0:00:30]} 3. Nc3 {[%emt 0:00:30]} e5 {[%emt 0:00:30]} 4. e3 {[%emt 0:00:30]} Nf6 {[%emt 0:00:30]} 5. d4 {[%emt 0:00:30]} cxd4 {[%emt 0:00:30]} 6. exd4 {[%emt 0:00:30]} e4 {[%emt 0:00:30]} 7. Ne5 {[%emt 0:00:30]} Qa5 {[%emt 0:00:30]} 8. Nxc6 {[%emt 0:00:30]} dxc6 {[%emt 0:00:30]} 9. Be2 {[%emt 0:00:30]} Bb4 {[%emt 0:00:30]} 10. O-O {[%emt 0:00:30]} Bxc3 {[%emt 0:00:30]} 11. bxc3 {[%emt 0:00:30]} O-O {[%emt 0:00:30]} 12. Qb3 {[%emt 0:00:30] White is slightly better.} Re8 {[%emt 0:00:30]} 13. Rd1 {[%emt 0:00:00]} Qf5 {[%emt 0:00:00]} 14. h3 {[%emt 0:00:00]} (14. c5 $14) 14... Qg6 $11 {[%emt 0:00:00] The position is equal.} 15. Kh2 {[%emt 0:00:00]} e3 $1 {[%emt 0:00:00]} 16. Bxe3 {[%emt 0:00:00]} Rxe3 {[%emt 0:00:00]} 17. fxe3 {[%emt 0:00:00] [#] And now Bf3 would win.} Ne4 {[%emt 0:00:00]} 18. Qc2 {[%emt 0:00:00] Strongly threatening Kg1.} (18. Bf3 $5 Qg3+ $8 19. Kg1 $11) 18... Qg3+ {[%emt 0:00:00]} 19. Kg1 {[%emt 0:00:00]} Qxe3+ {[%emt 0:00:00]} 20. Kh2 {[%emt 0:00:00]} Qg3+ {[%emt 0:00:00]} 21. Kg1 {[%emt 0:00:00] Weighted Error Value: White=0.16 (very precise) /Black=0.06 (flawless) .  Mistake:       	White=1     	---        Inaccurate:     	White=1     	Black=2      OK:         	White=2     	Black=4      Best:        	White=3     	Black=1      Strong:       	---       	Black=1} 1/2-1/2